bitfinex-derivatives/quotes_SOLF0:USTF0_20251020
["timestamp","ask_amount","ask_price","bid_price","bid_amount"]
[1760972198087,6.87139826,191.62,191.55,7.4377]
[1760972198289,6.87139826,191.62,191.56,2.74]
[1760972201894,6.87139826,191.62,191.56,7.4374]
[1760972202494,6.87139826,191.62,191.57,2.74]
[1760972204694,4.17337897,191.71,191.55,2.17509826]
[1760972205001,4.17337897,191.7,191.6,2.17509826]
[1760972205202,2.17509826,191.72,191.64,2.74]
[1760972205398,4.6945,191.69,191.64,2.74]
[1760972205800,4.6945,191.69,191.63,2.17509826]
[1760972207205,4.6945,191.69,191.62,9.61099826]
[1760972207403,4.6947,191.68,191.63,2.74]
[1760972208108,4.6947,191.68,191.64,2.17509826]
[1760972210406,4.6947,191.68,191.64,4.91509826]
[1760972210802,4.6947,191.68,191.64,2.74]
[1760972211006,4.6947,191.68,191.61,10.83762316]
[1760972211209,4.6947,191.68,191.62,2.78]
[1760972211810,4.6949,191.67,191.62,2.78]
[1760972212108,3.40152316,191.72,191.59,2.78]
[1760972212406,4.18047715,191.71,191.59,2.78]
[1760972212708,4.18047715,191.7,191.59,2.78]
[1760972212911,4.18047715,191.69,191.59,2.78]
[1760972213101,4.18047715,191.68,191.59,2.78]
[1760972213302,7.94559019,191.72,191.59,2.78]
[1760972213505,4.18074866,191.71,191.59,2.78]
[1760972213807,4.18074866,191.7,191.59,2.78]
[1760972214003,4.6957,191.64,191.59,2.78]
[1760972215903,4.6952,191.66,191.59,2.78]
[1760972216314,4.6954,191.65,191.59,2.78]
[1760972217400,8.17233668,191.72,191.59,2.78]
[1760972217605,3.40152316,191.69,191.57,3.40152316]
[1760972217806,4.6961,191.62,191.57,3.40152316]
[1760972218002,4.18216896,191.67,191.54,49.88152316]
[1760972218203,4.18216896,191.66,191.55,2.78]
[1760972218408,4.6957,191.64,191.55,2.78]
[1760972218603,4.6957,191.64,191.59,2.78]
[1760972220620,4.18237884,191.68,191.59,2.78]
[1760972220816,3.40152316,191.73,191.59,2.78]
[1760972221119,4.18426526,191.72,191.59,2.78]
[1760972221307,6.43085298,191.77,191.58,3.40152316]
[1760972221506,3.40152316,191.73,191.61,2.78]
[1760972222214,3.40152316,191.7,191.58,8.09842316]
[1760972222411,3.40152316,191.7,191.58,10.87842316]
[1760972222810,4.6957,191.64,191.58,2.78]
[1760972223216,3.40152316,191.7,191.58,2.78]
[1760972224018,4.6959,191.63,191.58,2.78]
[1760972229423,4.6962,191.62,191.58,2.78]
[1760972229621,3.40152316,191.67,191.58,2.78]
[1760972230121,4.6959,191.63,191.58,2.78]
[1760972230329,3.40152316,191.69,191.58,2.78]
[1760972230727,7.98511094,191.69,191.58,2.78]
[1760972230928,3.40152316,191.69,191.58,2.78]
[1760972231129,7.98511094,191.69,191.58,2.78]
[1760972231428,3.40152316,191.69,191.58,2.78]
[1760972231628,7.98511094,191.69,191.58,2.78]
[1760972231829,3.40152316,191.69,191.58,2.78]
[1760972232025,7.98511094,191.69,191.58,2.78]
[1760972232226,15.68,191.79,191.59,2.78]
[1760972232227,9.3858,191.75,191.59,2.78]
[1760972232433,4.58458761,191.74,191.61,3.40152316]
[1760972232633,4.6949,191.67,191.62,2.78]
[1760972232931,4.58449639,191.74,191.62,2.78]
[1760972233127,12.78732316,191.75,191.62,2.78]
[1760972233331,8.61810808,191.74,191.62,2.78]
[1760972233629,4.03366622,191.73,191.62,2.78]
[1760972233831,4.6947,191.68,191.62,2.78]
[1760972236933,4.6947,191.68,191.62,7.4759]
[1760972237136,4.03271758,191.73,191.63,2.86]
[1760972237339,3.40152316,191.75,191.63,2.86]
[1760972237523,4.03290998,191.74,191.63,2.86]
[1760972237736,4.58330977,191.77,191.65,2.86]
[1760972237930,3.40152316,191.78,191.65,2.86]
[1760972237931,4.03337823,191.76,191.65,2.86]
[1760972238137,4.03337823,191.75,191.65,2.86]
[1760972238438,4.03337823,191.74,191.65,2.86]
[1760972238639,9.3848,191.77,191.65,2.86]
[1760972238827,4.6944,191.69,191.65,2.86]
[1760972239730,4.6947,191.68,191.65,2.86]
[1760972252232,4.6947,191.68,191.58,3.40152316]
[1760972252233,4.6949,191.67,191.62,2.8]
[1760972253746,3.40152316,191.69,191.62,2.8]
[1760972254348,3.40152316,191.71,191.62,2.8]
[1760972254551,4.020421,191.7,191.62,2.8]
[1760972254754,3.40152316,191.71,191.62,2.8]
[1760972254942,4.02042037,191.7,191.62,2.8]
[1760972255135,9.3871,191.73,191.62,2.8]
[1760972255340,4.02100283,191.72,191.62,2.8]
[1760972255536,3.40152316,191.75,191.62,2.8]
[1760972255537,4.02100283,191.71,191.62,2.8]
[1760972255741,4.6944,191.69,191.63,2.8]
[1760972257954,4.6947,191.68,191.63,2.8]
[1760972259346,4.6947,191.68,191.61,3.40152316]
[1760972259560,4.6949,191.67,191.61,2.8]
[1760972262855,4.6951,191.66,191.61,2.8]
[1760972263254,4.02081809,191.71,191.62,2.8]
[1760972263450,4.6952,191.66,191.62,2.8]
[1760972264747,4.6954,191.65,191.62,2.8]
[1760972264947,4.6954,191.65,191.59,7.4966]
[1760972265158,3.40152316,191.69,191.59,2.8]
[1760972265359,4.02055074,191.68,191.59,2.8]
[1760972265558,3.40152316,191.69,191.59,2.8]
[1760972265756,4.02083453,191.68,191.59,2.8]
[1760972265956,4.02083453,191.67,191.59,2.8]
[1760972266160,4.696,191.63,191.59,2.8]
[1760972266856,4.696,191.63,191.57,43.66]
[1760972267359,4.6963,191.62,191.57,43.66]
[1760972267761,4.6963,191.62,191.57,46.46]
[1760972268261,4.6963,191.62,191.58,2.8]
[1760972268955,4.6963,191.62,191.57,46.46]
[1760972269145,4.6965,191.61,191.57,43.66]
[1760972269351,4.6965,191.61,191.54,2.8]
[1760972269858,4.6969,191.6,191.54,2.8]
[1760972272854,4.6971,191.59,191.54,2.8]
[1760972273049,2.1793036,191.6,191.51,2.74]
[1760972273254,2.1793036,191.58,191.51,2.74]
[1760972273954,4.6976,191.57,191.51,2.74]
[1760972275656,2.1793036,191.56,191.5,43.64]
[1760972275849,2.1793036,191.58,191.5,43.64]
[1760972276264,2.1793036,191.58,191.5,46.38]
[1760972276964,4.6978,191.56,191.5,46.38]
[1760972280566,6.8765036,191.58,191.51,2.74]
[1760972280866,2.1793036,191.58,191.51,2.74]
[1760972281462,2.1793036,191.6,191.51,2.74]
[1760972281758,2.1793036,191.6,191.52,2.74]
[1760972282358,2.1793036,191.62,191.52,2.74]
[1760972283055,4.6973,191.58,191.52,2.74]
[1760972283458,2.1793036,191.62,191.52,2.74]
[1760972285065,2.1793036,191.62,191.53,4.9193036]
[1760972285266,2.1793036,191.62,191.54,2.74]
[1760972285762,4.6968,191.6,191.54,2.74]
[1760972285961,2.1793036,191.62,191.54,2.74]
[1760972286367,2.1793036,191.6,191.54,2.74]
[1760972288070,4.6973,191.58,191.54,2.74]
[1760972290973,4.6973,191.58,191.52,2.74]
[1760972293267,4.6975,191.57,191.52,2.74]
[1760972293878,2.1793036,191.58,191.5,43.64]
[1760972294872,2.1793036,191.56,191.49,2.74]
[1760972295268,4.6986,191.53,191.49,2.74]
[1760972295464,2.1793036,191.54,191.46,2.78]
[1760972296868,4.699,191.51,191.46,2.78]
[1760972298072,2.1793036,191.54,191.46,2.78]
[1760972299980,4.6991,191.51,191.46,2.78]
[1760972304679,4.6993,191.5,191.44,2.68]
[1760972308487,4.6988,191.52,191.46,2.68]
[1760972308678,4.6988,191.52,191.48,2.68]
[1760972313192,2.1793036,191.52,191.44,2.68]
[1760972313487,2.1793036,191.5,191.44,2.68]
[1760972314986,2.1793036,191.52,191.44,2.68]
[1760972317082,4.6995,191.49,191.44,2.68]
[1760972319983,4.6997,191.48,191.44,2.68]
[1760972321091,2.1793036,191.51,191.41,2.68]
[1760972321792,2.1793036,191.49,191.41,2.68]
[1760972321993,4.7002,191.46,191.41,2.68]
[1760972323394,4.7004,191.45,191.41,2.68]
[1760972324589,4.6999,191.47,191.43,2.68]
[1760972324992,2.1793036,191.52,191.43,2.68]
[1760972325789,4.6999,191.47,191.43,2.68]
[1760972334100,4.6999,191.47,191.44,2.1793036]
[1760972334286,4.6999,191.47,191.44,4.8293036]
[1760972334699,4.6999,191.47,191.44,2.65]
[1760972337497,4.6995,191.49,191.44,2.65]
[1760972338001,4.6995,191.49,191.45,2.65]
[1760972345099,4.8385334,191.54,191.45,2.65]
[1760972345100,4.699,191.51,191.45,2.65]
[1760972345306,4.8385334,191.56,191.46,2.65]
[1760972345609,12.46707275,191.55,191.46,2.65]
[1760972345811,12.46707275,191.54,191.46,2.65]
[1760972346011,4.07568658,191.53,191.46,2.65]
[1760972346310,4.07568658,191.52,191.46,2.65]
[1760972346506,4.6992,191.5,191.46,2.65]
[1760972346805,4.8385334,191.55,191.43,2.65]
[1760972347014,15.87529732,191.54,191.43,2.65]
[1760972347215,12.46635228,191.53,191.43,2.65]
[1760972347412,4.8385334,191.51,191.4,6.05894504]
[1760972347612,12.46635228,191.5,191.4,6.05894504]
[1760972347812,7.86597611,191.49,191.4,6.05894504]
[1760972348014,4.7004,191.45,191.4,3.40894504]
[1760972348203,4.7004,191.45,191.41,2.65]
[1760972348723,4.6999,191.47,191.41,2.65]
[1760972350811,4.7002,191.46,191.41,2.65]
[1760972352824,4.7004,191.45,191.41,2.65]
[1760972354216,4.7006,191.44,191.41,2.65]
[1760972354620,4.7006,191.44,191.39,6.26894504]
[1760972355329,3.40894504,191.51,191.36,2.86]
[1760972355330,8.24747844,191.48,191.36,2.86]
[1760972355625,12.46461845,191.47,191.36,2.86]
[1760972355925,12.46461845,191.46,191.36,2.86]
[1760972356125,7.86441933,191.45,191.36,2.86]
[1760972356426,4.07421388,191.44,191.36,2.86]
[1760972356614,8.38980449,191.46,191.36,2.86]
[1760972356814,4.0737062,191.45,191.36,2.86]
[1760972357024,4.7008,191.43,191.36,2.86]
[1760972359118,4.7011,191.42,191.36,2.86]
[1760972359721,4.7011,191.42,191.39,2.86]
[1760972360627,12.45708043,191.41,191.3,2.86]
[1760972360929,3.40894504,191.45,191.32,2.86]
[1760972361129,4.7022,191.38,191.32,2.86]
[1760972361332,4.07307503,191.43,191.32,2.86]
[1760972361527,4.07307503,191.42,191.32,2.86]
[1760972361727,4.07282603,191.41,191.32,2.86]
[1760972361928,3.40894504,191.42,191.32,2.86]
[1760972362228,4.07282709,191.41,191.32,2.86]
[1760972362418,3.40894504,191.42,191.32,2.86]
[1760972362619,4.07127831,191.41,191.32,2.86]
[1760972362816,3.40894504,191.42,191.32,2.86]
[1760972363125,4.7024,191.37,191.32,2.86]
[1760972363626,3.40894504,191.38,191.32,2.86]
[1760972365124,3.40894504,191.4,191.32,2.86]
[1760972365521,4.7024,191.37,191.32,2.86]
[1760972366834,9.4009,191.45,191.32,2.86]
[1760972367033,3.40894504,191.41,191.32,2.86]
[1760972367832,4.7024,191.37,191.32,2.86]
[1760972370335,4.7026,191.36,191.32,2.86]
[1760972371536,4.7026,191.36,191.29,2.71]
[1760972371739,4.7029,191.35,191.29,2.71]
[1760972376945,4.7031,191.34,191.29,2.71]
[1760972379042,4.7026,191.36,191.29,2.71]
[1760972380935,4.7026,191.36,191.29,7.4141]
[1760972381146,4.7026,191.36,191.3,2.71]
[1760972382240,4.7021,191.38,191.3,2.71]
[1760972383746,4.7024,191.37,191.3,2.71]
[1760972388051,4.7026,191.36,191.3,2.71]
[1760972390455,4.7022,191.38,191.3,7.4139]
[1760972390644,4.7022,191.38,191.31,2.71]
[1760972391654,4.7024,191.37,191.31,2.71]
[1760972394653,4.8385334,191.48,191.35,2.18326042]
[1760972394957,2.18326042,191.44,191.36,2.65]
[1760972395156,4.07308332,191.43,191.36,2.65]
[1760972395363,2.18326042,191.44,191.36,2.65]
[1760972395550,4.07308332,191.43,191.36,2.65]
[1760972395748,2.18326042,191.44,191.36,2.65]
[1760972395948,4.7013,191.41,191.36,2.65]
[1760972398464,4.7013,191.41,191.36,2.65]
[1760972400259,2.18326042,191.42,191.36,2.65]
[1760972400456,4.7009,191.43,191.36,2.65]
[1760972400853,3.79385832,191.46,191.29,9.4084]
[1760972401053,2.18326042,191.48,191.4,2.65]
[1760972401253,4.08242359,191.47,191.4,7.3514]
[1760972401449,6.88296042,191.48,191.39,2.18326042]
[1760972401450,2.18326042,191.48,191.41,2.65]
[1760972401656,2.18326042,191.5,191.42,2.65]
[1760972401864,4.08168895,191.49,191.42,2.65]
[1760972402163,4.08168895,191.48,191.42,2.65]
[1760972402460,2.18326042,191.5,191.42,2.65]
[1760972402661,2.18326042,191.54,191.44,2.65]
[1760972402868,7.87479288,191.53,191.44,2.65]
[1760972403057,4.08103896,191.52,191.46,2.65]
[1760972403261,2.18326042,191.55,191.46,2.65]
[1760972403451,4.07743764,191.54,191.46,7.3499]
[1760972403657,2.18326042,191.52,191.47,2.65]
[1760972404160,251.11018933,191.89,191.4,2.18326042]
[1760972404161,2.18326042,191.48,191.4,2.18326042]
[1760972404466,2.18326042,191.48,191.42,4.7009]
[1760972404663,2.18326042,191.5,191.43,2.65]
[1760972405160,2.18326042,191.52,191.46,2.65]
[1760972406959,2.18326042,191.5,191.43,7.3507]
[1760972407162,2.18326042,191.5,191.44,2.65]
[1760972409160,2.18326042,191.5,191.44,4.7003]
[1760972409362,2.18326042,191.52,191.45,2.65]
[1760972409867,2.18326042,191.52,191.47,2.65]
[1760972410557,2.18326042,191.54,191.47,4.6996]
[1760972410757,2.18326042,191.54,191.48,2.65]
[1760972411365,2.18326042,191.54,191.49,2.65]
[1760972413072,2.18326042,191.52,191.45,2.65]
[1760972413571,2.18326042,191.52,191.47,2.65]
[1760972414959,2.18326042,191.52,191.42,2.18326042]
[1760972414960,2.18326042,191.52,191.45,2.71]
[1760972415356,2.18326042,191.5,191.45,2.71]
[1760972416969,2.18326042,191.5,191.4,2.18326042]
[1760972417273,2.18326042,191.47,191.41,2.71]
[1760972417575,4.699,191.51,191.41,2.71]
[1760972417576,2.18326042,191.51,191.45,2.71]
[1760972417760,2.18326042,191.53,191.45,2.71]
[1760972417960,2.18326042,191.55,191.46,2.71]
[1760972418861,2.18326042,191.55,191.5,2.71]
[1760972419060,0.90881788,191.64,191.5,2.71]
[1760972419061,2.18326042,191.58,191.5,2.71]
[1760972419775,2.18326042,191.58,191.51,7.4087]
[1760972420274,2.18326042,191.56,191.51,7.4087]
[1760972420476,2.18326042,191.56,191.52,2.71]
[1760972420662,2.18326042,191.54,191.51,4.6987]
[1760972420858,2.18326042,191.54,191.51,7.4087]
[1760972421073,2.18326042,191.54,191.52,2.64]
[1760972421259,2.18326042,191.56,191.52,2.64]
[1760972424073,2.18326042,191.56,191.51,4.6987]
[1760972424268,2.18326042,191.56,191.51,7.3387]
[1760972424670,2.18326042,191.54,191.52,2.64]
[1760972425676,2.18326042,191.54,191.49,7.3392]
[1760972426064,2.18326042,191.52,191.49,7.3392]
[1760972426467,2.18326042,191.52,191.5,2.64]
[1760972427273,4.6979,191.55,191.5,2.64]
[1760972427480,2.18326042,191.52,191.5,2.64]
[1760972428379,2.18326042,191.54,191.5,2.64]
[1760972430177,2.18326042,191.52,191.5,2.64]
[1760972433978,2.18326042,191.52,191.43,2.64]
[1760972434177,14.23402774,191.63,191.43,2.64]
[1760972434178,2.18326042,191.48,191.43,2.64]
[1760972434678,12.30500744,191.59,191.39,2.64]
[1760972434679,2.18326042,191.44,191.39,2.64]
[1760972434982,2.18326042,191.4,191.36,46.16]
[1760972435283,2.18326042,191.4,191.37,2.64]
[1760972435776,2.18326042,191.4,191.36,43.52]
[1760972435777,2.18326042,191.4,191.36,46.16]
[1760972435978,2.18326042,191.4,191.37,2.64]
[1760972436186,2.18326042,191.42,191.37,2.64]
[1760972437272,2.18326042,191.39,191.37,2.64]
[1760972437472,2.18326042,191.39,191.35,2.64]
[1760972437874,2.18326042,191.37,191.33,2.64]
[1760972438283,2.18326042,191.37,191.33,7.3431]
[1760972438479,2.18326042,191.37,191.34,2.64]
[1760972440283,2.18326042,191.37,191.3,2.64]
[1760972440495,2.18326042,191.35,191.3,2.64]
[1760972442998,2.18326042,191.37,191.3,7.3438]
[1760972443195,2.18326042,191.39,191.31,2.64]
[1760972443790,2.18326042,191.39,191.34,4.7027]
[1760972444099,2.18326042,191.42,191.35,2.64]
[1760972448295,4.7009,191.43,191.35,2.64]
[1760972448495,4.7004,191.45,191.37,2.64]
[1760972448998,2.18326042,191.46,191.39,2.64]
[1760972449200,4.7002,191.46,191.39,2.64]
[1760972449503,2.18326042,191.48,191.39,2.64]
[1760972450604,4.7,191.47,191.39,2.64]
[1760972452203,4.7,191.47,191.39,4.7016]
[1760972452404,6.88446042,191.42,191.35,2.71]
[1760972454691,4.7012,191.42,191.35,2.71]
[1760972455589,4.7006,191.44,191.35,2.71]
[1760972458410,4.7009,191.43,191.35,2.71]
[1760972459799,8.11216328,191.45,191.36,2.71]
[1760972460204,3.41186328,191.47,191.37,4.7021]
[1760972460504,3.41186328,191.47,191.38,2.71]
[1760972461700,3.41186328,191.47,191.39,4.7015]
[1760972461908,3.41186328,191.47,191.4,2.71]
[1760972462106,3.41186328,191.5,191.4,2.71]
[1760972462509,4.6994,191.49,191.41,2.71]
[1760972463405,43.52,191.56,191.41,2.71]
[1760972463606,3.41186328,191.53,191.42,2.71]
[1760972463807,3.41186328,191.56,191.42,2.71]
[1760972464006,8.10956328,191.56,191.44,4.7005]
[1760972464306,8.10956328,191.56,191.45,2.71]
[1760972464514,3.41186328,191.56,191.45,2.71]
[1760972465714,3.41186328,191.53,191.45,2.71]
[1760972466410,8.11036328,191.53,191.45,2.71]
[1760972466908,3.41186328,191.53,191.45,2.71]
[1760972467104,3.41186328,191.53,191.38,3.41186328]
[1760972467309,3.41186328,191.53,191.39,2.71]
[1760972469010,4.6992,191.5,191.42,2.71]
[1760972470516,3.41186328,191.56,191.43,2.71]
[1760972471015,4.6979,191.55,191.48,2.71]
[1760972471212,3.41186328,191.56,191.48,2.71]
[1760972472513,3.41186328,191.56,191.49,4.6991]
[1760972472719,15.14246256,191.64,191.5,2.71]
[1760972472911,3.41186328,191.6,191.5,2.71]
[1760972473114,8.10856328,191.6,191.53,2.71]
[1760972473524,3.41186328,191.6,191.53,2.71]
[1760972473712,12.44909006,191.64,191.53,2.71]
[1760972473914,3.41186328,191.61,191.53,2.71]
[1760972474223,4.05181739,191.6,191.53,2.71]
[1760972474420,3.41186328,191.61,191.53,2.71]
[1760972474719,7.46368067,191.61,191.53,2.71]
[1760972474919,4.697,191.59,191.53,2.71]
[1760972475114,4.697,191.59,191.5,2.88]
[1760972476118,3.41186328,191.58,191.5,2.88]
[1760972476820,3.41186328,191.58,191.49,4.6992]
[1760972477015,3.41186328,191.58,191.47,2.88]
[1760972477016,3.41186328,191.58,191.47,7.5797]
[1760972477720,4.6975,191.57,191.47,7.5797]
[1760972477917,4.6975,191.57,191.42,3.41186328]
[1760972477918,4.6975,191.57,191.48,7.5794]
[1760972479218,4.6977,191.56,191.48,7.5794]
[1760972482927,4.6977,191.56,191.48,4.6994]
[1760972483124,4.6977,191.56,191.49,2.83]
[1760972483526,4.6977,191.56,191.5,2.83]
[1760972483727,4.6972,191.58,191.5,2.83]
[1760972484031,3.41186328,191.58,191.5,2.83]
[1760972484431,7.46091045,191.58,191.5,2.83]
[1760972484629,3.41186328,191.58,191.5,2.83]
[1760972485130,4.6977,191.56,191.5,2.83]
[1760972485530,4.6971,191.59,191.51,2.83]
[1760972487131,4.6972,191.58,191.51,7.5286]
[1760972487523,4.6972,191.58,191.52,2.83]
[1760972488640,3.41186328,191.54,191.36,2.83]
[1760972488819,3.41186328,191.54,191.4,2.83]
[1760972489227,4.6985,191.53,191.43,2.83]
[1760972489728,4.6987,191.52,191.4,2.83]
[1760972490230,4.6987,191.52,191.44,2.83]
[1760972490834,4.6987,191.52,191.45,2.83]
[1760972491032,4.6982,191.54,191.45,2.83]
[1760972491733,4.6985,191.53,191.47,4.6997]
[1760972491932,4.6985,191.53,191.48,2.83]
[1760972492833,8.11036328,191.53,191.48,2.83]
[1760972493536,3.41186328,191.55,191.48,2.83]
[1760972496035,3.41186328,191.55,191.48,7.5294]
[1760972497036,3.41186328,191.55,191.49,2.83]
[1760972497934,8.10976328,191.55,191.49,2.83]
[1760972499832,3.41186328,191.55,191.49,2.83]
[1760972501339,8.10986328,191.55,191.49,2.83]
[1760972504144,4.6982,191.54,191.49,2.83]
[1760972504337,3.41186328,191.52,191.46,7.5299]
[1760972505831,3.41186328,191.52,191.46,2.83]
[1760972506037,3.41186328,191.49,191.4,2.83]
[1760972506338,3.41186328,191.41,191.31,2.83]
[1760972506539,3.41186328,191.4,191.33,2.83]
[1760972507131,3.41186328,191.4,191.33,4.7031]
[1760972507331,3.41186328,191.4,191.34,2.83]
[1760972508738,4.701,191.42,191.34,2.83]
[1760972509243,4.7015,191.41,191.34,2.83]
[1760972509445,3.41186328,191.43,191.34,2.83]
[1760972509740,8.11356328,191.4,191.31,2.83]
[1760972509942,3.41186328,191.4,191.31,2.83]
[1760972510640,3.41186328,191.37,191.27,2.83]
[1760972511242,3.41186328,191.4,191.28,2.68]
[1760972512643,4.03399121,191.43,191.28,2.68]
[1760972512843,3.41186328,191.41,191.28,2.68]
[1760972513142,4.7017,191.4,191.3,7.3837]
[1760972513446,4.7017,191.4,191.31,2.68]
[1760972513743,4.7011,191.42,191.31,2.68]
[1760972513943,3.41186328,191.43,191.31,2.68]
[1760972514737,4.702,191.39,191.29,3.41186328]
[1760972514939,3.41186328,191.4,191.28,2.68]
[1760972515344,4.7025,191.37,191.28,2.68]
[1760972516952,3.41186328,191.4,191.28,2.68]
[1760972516953,6.88789579,191.36,191.28,2.68]
[1760972517362,2.18519579,191.34,191.28,2.68]
[1760972517653,6.88819579,191.34,191.25,2.68]
[1760972520258,4.7034,191.33,191.25,2.68]
[1760972521743,6.88859579,191.33,191.25,2.68]
[1760972522052,4.7034,191.33,191.26,2.18519579]
[1760972522549,4.7034,191.33,191.25,2.68]
[1760972522550,4.7036,191.32,191.25,2.68]
[1760972523057,2.18519579,191.33,191.22,4.86519579]
[1760972523354,2.18519579,191.31,191.22,2.68]
[1760972523556,4.7042,191.3,191.22,2.68]
[1760972523758,2.18519579,191.23,190.95,2.68]
[1760972523953,2.18519579,191.12,190.95,2.68]
[1760972524147,4.7088,191.11,191.0,2.68]
[1760972524552,2.18519579,191.09,191.0,2.68]
[1760972524751,9.03718668,191.14,191.0,2.68]
[1760972525059,4.01509676,191.13,191.0,2.68]
[1760972525648,4.7087,191.12,191.0,2.68]
[1760972525956,31.04,191.16,191.0,2.68]
[1760972526156,4.7081,191.13,191.0,2.68]
[1760972526356,5.02208992,191.12,191.0,2.68]
[1760972527058,4.7086,191.11,191.0,2.68]
[1760972527662,5.02208992,191.12,191.0,2.68]
[1760972528157,4.7089,191.1,191.0,2.68]
[1760972529954,9.73158992,191.08,190.97,2.68]
[1760972530464,5.02208992,191.08,190.97,2.68]
[1760972531850,4.7098,191.07,190.97,2.68]
[1760972532057,5.02208992,191.08,190.97,2.68]
[1760972532459,9.73148992,191.08,190.97,2.68]
[1760972532758,39.4,191.15,190.97,2.68]
[1760972532759,5.02208992,191.1,190.97,2.68]
[1760972533763,5.02208992,191.15,191.01,2.68]
[1760972533950,9.1491496,191.15,191.01,2.68]
[1760972534167,4.12705968,191.14,191.01,2.68]
[1760972534352,5.02208992,191.15,191.01,2.68]
[1760972534664,4.7086,191.11,191.01,2.68]
[1760972535461,4.7086,191.11,191.02,2.89]
[1760972535855,4.12391586,191.14,191.02,2.89]
[1760972536160,4.12391586,191.17,191.02,2.89]
[1760972536359,4.12391586,191.16,191.02,2.89]
[1760972536662,4.12391586,191.15,191.02,2.89]
[1760972536861,4.7084,191.12,191.02,2.89]
[1760972537154,5.02208992,191.18,191.02,2.89]
[1760972537458,4.7089,191.1,191.02,2.89]
[1760972537661,4.7089,191.1,191.0,4.7111]
[1760972537662,4.7089,191.1,190.99,2.89]
[1760972538354,4.7094,191.08,190.99,2.89]
[1760972542163,4.7089,191.1,191.0,4.7113]
[1760972542363,4.7089,191.1,191.01,2.68]
[1760972542954,4.12038643,191.13,191.01,2.68]
[1760972543150,4.12038643,191.12,191.01,2.68]
[1760972543350,4.12038643,191.13,191.01,2.68]
[1760972543562,4.12038643,191.12,191.01,2.68]
[1760972543766,5.02208992,191.14,191.01,2.68]
[1760972543767,4.7089,191.1,191.01,2.68]
[1760972544472,4.7093,191.09,191.01,2.68]
[1760972546264,4.7095,191.08,191.01,2.68]
[1760972546664,6.9008737,191.08,191.01,2.68]
[1760972550774,4.7097,191.07,191.01,2.68]
[1760972552974,4.71,191.06,191.01,2.68]
[1760972553162,4.15188269,191.05,190.98,2.68]
[1760972553470,2.1913737,191.06,190.98,2.68]
[1760972553671,4.15457135,191.05,190.98,2.68]
[1760972553858,11.05679198,191.04,190.98,2.68]
[1760972554064,4.15491828,191.03,190.98,2.68]
[1760972554260,4.15491828,191.02,190.98,2.68]
[1760972554461,6.9018737,191.04,190.98,2.68]
[1760972558373,4.08693342,191.03,190.98,2.68]
[1760972558574,6.9018737,191.04,190.98,2.68]
[1760972558782,4.08693342,191.03,190.98,2.68]
[1760972558981,6.9018737,191.04,190.98,2.68]
[1760972559168,4.08693342,191.03,190.98,2.68]
[1760972559483,6.9018737,191.04,190.98,2.68]
[1760972559773,4.09090454,191.03,190.98,2.68]
[1760972559973,2.1913737,191.04,190.98,2.68]
[1760972560173,4.09090454,191.03,190.98,2.68]
[1760972560368,2.1913737,191.04,190.98,2.68]
[1760972560576,4.09489354,191.03,190.98,2.68]
[1760972560764,4.75915209,191.09,190.99,2.68]
[1760972560965,2.1913737,191.07,191.0,2.68]